Workbook

Sheet График учебного процесса
A1: 1. График учебного процесса
A3: Курс | B3: Сентябрь | F3: 25 | G3: Октябрь | K3: Ноябрь | O3: 27 | P3: Декабрь | S3: 25 | T3: Январь | X3: 29 | Y3: Февраль | AB3: 26 | AC3: Март | AG3: Апрель | AL3: Май | AP3: Июнь | AU3: Июль | AX3: Август
B4: 1 | C4: 4 | D4: 11 | E4: 18 | F4: 9 | G4: 2 | H4: 9 | I4: 16 | J4: 23 | K4: 30 | L4: 6 | M4: 13 | N4: 20 | O4: 11 | P4: 4 | Q4: 11 | R4: 18 | S4: 12 | T4: 1 | U4: 8 | V4: 15 | W4: 22 | X4: I | Y4: 5 | Z4: 12 | AA4: 19 | AB4: II | AC4: 4 | AD4: 11 | AE4: 18 | AF4: 25 | AG4: 1 | AH4: 8 | AI4: 15 | AJ4: 22 | AK4: 29 | AL4: 6 | AM4: 13 | AN4: 20 | AO4: 27 | AP4: 3 | AQ4: 10 | AR4: 17 | AS4: 24 | AT4: 1 | AU4: 8 | AV4: 15 | AW4: 22 | AX4: 29 | AY4: 5 | AZ4: 12 | BA4: 19 | BB4: 26
K5: 10
B6: 3 | C6: 10 | D6: 17 | E6: 24 | F6: 1 | G6: 8 | H6: 15 | I6: 22 | J6: 29 | K6: 5 | L6: 12 | M6: 19 | N6: 26 | O6: 3 | P6: 10 | Q6: 17 | R6: 24 | S6: 31 | T6: 7 | U6: 14 | V6: 21 | W6: 28 | X6: 4 | Y6: 11 | Z6: 18 | AA6: 25 | AB6: 3 | AC6: 10 | AD6: 17 | AE6: 24 | AF6: 31 | AG6: 7 | AH6: 14 | AI6: 21 | AJ6: 28 | AK6: 5 | AL6: 12 | AM6: 19 | AN6: 26 | AO6: 2 | AP6: 9 | AQ6: 16 | AR6: 23 | AS6: 30 | AT6: 7 | AU6: 14 | AV6: 21 | AW6: 28 | AX6: 4 | AY6: 11 | AZ6: 18 | BA6: 25 | BB6: 31
F7: 10. | K7: 11 | O7: 12 | S7: 12 | X7: II | AB7: III | AF7: 3 | AK7: 5 | AO7: 6 | AX7: 8
B8: 1 | C8: 2 | D8: 3 | E8: 4 | F8: 5 | G8: 6 | H8: 7 | I8: 8 | J8: 9 | K8: 10 | L8: 11 | M8: 12 | N8: 13 | O8: 14 | P8: 15 | Q8: 16 | R8: 17 | S8: 18 | T8: 19 | U8: 20 | V8: 21 | W8: 22 | X8: 23 | Y8: 24 | Z8: 25 | AA8: 26 | AB8: 27 | AC8: 28 | AD8: 29 | AE8: 30 | AF8: 31 | AG8: 32 | AH8: 33 | AI8: 34 | AJ8: 35 | AK8: 36 | AL8: 37 | AM8: 38 | AN8: 39 | AO8: 40 | AP8: 41 | AQ8: 42 | AR8: 43 | AS8: 44 | AT8: 45 | AU8: 46 | AV8: 47 | AW8: 48 | AX8: 49 | AY8: 50 | AZ8: 51 | BA8: 52 | BB8: 53
A9: I | B9: Т | C9: Т | D9: Т | E9: Т | F9: Т | G9: Т | H9: Т | I9: Т | J9: Т | K9: Т | L9: Т | M9: Т | N9: Т | O9: Т | P9: Т | Q9: Т | R9: Т | S9: К | T9: К | U9: Т | V9: Т | W9: Т | X9: Т | Y9: Т | Z9: Т | AA9: Т | AB9: Т | AC9: Т | AD9: Т | AE9: Т | AF9: Т | AG9: Т | AH9: Т | AI9: Т | AJ9: Т | AK9: Т | AL9: Т | AM9: Т | AN9: Т | AO9: Т | AP9: Т | AQ9: Т | AR9: А | AS9: А | AT9: К | AU9: К | AV9: К | AW9: К | AX9: К | AY9: К | AZ9: К | BA9: К | BB9: К
A10: II | B10: Т | C10: Т | D10: Т | E10: Т | F10: Т | G10: Т | H10: Т | I10: Т | J10: Т | K10: Т | L10: Т | M10: Т | N10: Т | O10: Т | P10: Т | Q10: Т | R10: А | S10: К | T10: К | U10: Т | V10: Т | W10: Т | X10: Т | Y10: Т | Z10: Т | AA10: Т | AB10: Т | AC10: Т | AD10: Т | AE10: Т | AF10: Т | AG10: Т | AH10: Т | AI10: Т | AJ10: Т | AK10: Т | AL10: У | AM10: У | AN10: У | AO10: У | AP10: П | AQ10: П | AR10: П | AS10: А | AT10: К | AU10: К | AV10: К | AW10: К | AX10: К | AY10: К | AZ10: К | BA10: К | BB10: К
A11: III | B11: Т | C11: Т | D11: Т | E11: Т | F11: Т | G11: Т | H11: ТУ | I11: ТУ | J11: ТУ | K11: ТУ | L11: ТУ | M11: ТУ | N11: У | O11: У | P11: П | Q11: П | R11: А | S11: К | T11: К | U11: Т | V11: Т | W11: Т | X11: Т | Y11: Т | Z11: Т | AA11: Т | AB11: Т | AC11: Т | AD11: Т | AE11: Т | AF11: Т | AG11: Т | AH11: Т | AI11: Т | AJ11: Т | AK11: Т | AL11: У | AM11: У | AN11: У | AO11: П | AP11: П | AQ11: П | AR11: П | AS11: А | AT11: А | AU11: К | AV11: К | AW11: К | AX11: К | AY11: К | AZ11: К | BA11: К | BB11: К
A12: IV | B12: Т | C12: Т | D12: Т | E12: Т | F12: Т | G12: Т | H12: Т | I12: Т | J12: Т | K12: Т | L12: Т | M12: У | N12: У | O12: У | P12: П | Q12: П | R12: П | S12: К | T12: К | U12: Т | V12: Т | W12: Т | X12: Т | Y12: Т | Z12: Т | AA12: Т | AB12: У | AC12: У | AD12: У | AE12: П | AF12: П | AG12: П | AH12: П | AI12: А | AJ12: Х | AK12: Х | AL12: Х | AM12: Х | AN12: И | AO12: И | AP12: Июнь | AQ12: И | AR12: И | AS12: И
A14: Обозначения: | G14: ТУ | J14: Теорет.обучение и уч.практ | N14: Т | R14: Теоретическое обучение | U14: У | Y14: Учебная практика | AB14: П | AE14: Производственная практика | AI14: А | AL14: Промежуточная аттестация | AP14: И | AR14: Итоговая государственная аттестация | AV14: К | AX14: Каникулы | BA14: Столбец1 | BB14: Столбец2
BA16: Х | BB16: ПДП

Sheet Уч. план
A1: 3. План учебного процесса
A2: Индекс | B2: Наименование дисциплин, профессиональных модулей, междисциплинарных курсов, практик | C2: Формы промежуточной аттестации (распределение по семестрам) | F2: Учебная нагрузка обучающихся (час.) | K2: Распределение обязательной нагрузки по курсам и семестрам (час. в семестр)
F3: Максимальная | G3: Самостоятельная работа | H3: Обязательная аудиторная | K3: 1 курс | O3: 2 курс | S3: 3 курс | W3: 4 курс | AG3: V курс
C4: Экзамены | D4: Зачеты | E4: Дифференцированные зачеты | H4: Всего | I4: в т.ч. | K4: 1 сем. | M4: 2 сем. | O4: 3 сем. | Q4: 4 сем. | S4: 5 сем. | U4: 6 сем. | W4: 7 сем. | AB4: 8 сем. | AG4: 9 сем. | AL4: 10 сем.
I5: лекций, семинаров, уроков и т.д. | J5: лабораторных и практических занятий, практик
K6: 17 | M6: 16 | N6: 7 | O6: 16 | P6: 1 | Q6: 18 | R6: 5 | S6: 16 | U6: 10 | V6: 10 | W6: 13 | AB6: 13 | AF6: 4
K7: нед. | M7: нед. | O7: нед. | Q7: нед. | S7: нед. | U7: нед. | W7: нед. | AB7: нед. | AG7: нед. | AL7: нед.
K8: =IF((SUM(K11:K99)-K45-K46-K51-K52-K59-K60-K67-K68-K75-K76-K83-K84-K91-K92-K99)/K6=36,"","ОШИБКА") ->  | M8: =IF((SUM(M11:M99)-M45-M46-M51-M52-M59-M60-M67-M68-M75-M76-M83-M84-M91-M92-M99)/M6=36,"","ОШИБКА") ->  | N8: Практика (концентрированная) | O8: =IF((SUM(O11:O99)-O45-O46-O51-O52-O59-O60-O67-O68-O75-O76-O83-O84-O91-O92-O99)/O6=36,"","ОШИБКА") ->  | P8: Практика (концентрированная) | Q8: =IF((SUM(Q11:Q99)-Q45-Q46-Q51-Q52-Q59-Q60-Q67-Q68-Q75-Q76-Q83-Q84-Q91-Q92-Q99)/Q6=36,"","ОШИБКА") ->  | R8: Практика (концентрированная) | S8: =IF((SUM(S11:S99)-S45-S46-S51-S52-S59-S60-S67-S68-S75-S76-S83-S84-S91-S92-S99)/S6=36,"","ОШИБКА") ->  | T8: Практика (концентрированная) | V8: Практика (концентрированная) | W8: =IF((SUM(W11:W106)-W52-W53-W60-W61-W68-W69-W76-W77-W84-W85-W92-W93-W100-W101-W106)/W6=36,"","ОШИБКА") -> ОШИБКА | AA8: Практика (концентрированная) | AB8: =IF((SUM(AB11:AB106)-AB52-AB53-AB60-AB61-AB68-AB69-AB76-AB77-AB84-AB85-AB92-AB93-AB100-AB101-AB106)/AB6=36,"","ОШИБКА") -> ОШИБКА | AF8: Практика (концентрированная) | AG8: =IF((SUM(AG11:AG106)-AG52-AG53-AG60-AG61-AG68-AG69-AG76-AG77-AG84-AG85-AG92-AG93-AG100-AG101-AG106)/AG6=36,"","ОШИБКА") ->  | AK8: Практика (концентрированная) | AL8: =IF((SUM(AL11:AL106)-AL52-AL53-AL60-AL61-AL68-AL69-AL76-AL77-AL84-AL85-AL92-AL93-AL100-AL101-AL106)/AL6=36,"","ОШИБКА") ->  | AP8: Практика (концентрированная)
A9: 1 | B9: 2 | C9: 3 | F9: 4 | G9: 5 | H9: 6 | I9: 7 | J9: 8 | K9: 9 | M9: 10 | N9: 11 | O9: 12 | P9: 13 | Q9: 14 | R9: 15 | S9: 16 | T9: 17 | U9: 18 | V9: 19 | W9: 20 | AA9: 21 | AB9: 22 | AF9: 23 | AG9: 20 | AK9: 21 | AL9: 22 | AP9: 23
A10: О.00 | B10: Общеобразовательный цикл | C10: 3 | E10: 10 | F10: =SUM(F11:F24) -> 3078 | G10: =SUM(G11:G24) -> 1026 | H10: =SUM(H11:H24) -> 2052 | I10: =SUM(I11:I24) -> 1238 | J10: =SUM(J11:J24) -> 814
A11: ОУД.01 | B11: Русский язык и литература | C11: 5 | F11: =SUM(G11:H11) -> 427 | G11: 142 | H11: 285 | I11: 205 | J11: 80 | K11: 68 | M11: 32 | O11: 64 | Q11: 55 | S11: 66 | X11: ( | Z11: ) | AC11: ( | AE11: ) | AH11: ( | AJ11: ) | AM11: ( | AO11: ) | AR11: =SUM(K11:V11) -> 285
A12: ОУД.02 | B12: Иностранный язык | E12: 4 | F12: 257 | G12: 86 | H12: 171 | I12: 37 | J12: 134 | K12: 68 | M12: 32 | O12: 32 | Q12: 39 | X12: ( | Z12: ) | AC12: ( | AE12: ) | AH12: ( | AJ12: ) | AM12: ( | AO12: ) | AR12: =SUM(K12:V12) -> 171
A13: ОУД.03 | B13: Математика: алгебра, начала математического анализа, геометрия | C13: 5 | F13: 342 | G13: 114 | H13: 228 | I13: 134 | J13: 94 | K13: 68 | M13: 32 | O13: 64 | Q13: 40 | S13: 24 | X13: ( | Z13: ) | AC13: ( | AE13: ) | AH13: ( | AJ13: ) | AM13: ( | AO13: ) | AR13: =SUM(K13:AQ13) -> 228
A14: ОУД.04 | B14: История | E14: 5 | F14: 257 | G14: 86 | H14: 171 | I14: 141 | J14: 30 | K14: 34 | M14: 32 | O14: 32 | Q14: 38 | S14: 35 | X14: ( | Z14: ) | AC14: ( | AE14: ) | AH14: ( | AJ14: ) | AM14: ( | AO14: ) | AR14: =SUM(K14:V14) -> 171
A15: ОУД.05 | B15: Физическая культура | D15: 2 | E15: 4.5 | F15: 257 | G15: 86 | H15: 171 | I15: 8 | J15: 163 | K15: 34 | M15: 32 | O15: 32 | Q15: 38 | S15: 35 | X15: ( | Z15: ) | AC15: ( | AE15: ) | AH15: ( | AJ15: ) | AM15: ( | AO15: ) | AR15: =SUM(K15:V15) -> 171
A16: ОУД.06 | B16: Основы безопасности жизнедеятельности | E16: 2 | F16: 108 | G16: 36 | H16: 72 | I16: 54 | J16: 18 | K16: 38 | M16: 34 | X16: ( | Z16: ) | AC16: ( | AE16: ) | AH16: ( | AJ16: ) | AM16: ( | AO16: ) | AR16: =SUM(K16:V16) -> 72
A17: ОУД.07 | B17: Информатика | E17: 2 | F17: 162 | G17: 54 | H17: 108 | I17: 36 | J17: 72 | K17: 68 | M17: 40 | X17: ( | Z17: ) | AC17: ( | AE17: ) | AH17: ( | AJ17: ) | AM17: ( | AO17: ) | AR17: =SUM(K17:V17) -> 108
A18: ОУД.08 | B18: Физика | E18: 2 | F18: 162 | G18: 54 | H18: 108 | I18: 82 | J18: 26 | K18: 68 | M18: 40 | X18: ( | Z18: ) | AC18: ( | AE18: ) | AH18: ( | AJ18: ) | AM18: ( | AO18: ) | AR18: =SUM(K18:V18) -> 108
A19: ОУД.09 | B19: Химия | C19: 5 | F19: 256 | G19: 85 | H19: 171 | I19: 123 | J19: 48 | O19: 64 | Q19: 60 | S19: 47 | X19: ( | Z19: ) | AC19: ( | AE19: ) | AH19: ( | AJ19: ) | AM19: ( | AO19: ) | AR19: 171
A20: ОУД.10 | B20: Обществознание (включая экономику и право) | E20: 5 | F20: 256 | G20: 85 | H20: 171 | I20: 148 | J20: 23 | O20: 64 | Q20: 44 | S20: 63 | X20: ( | Z20: ) | AC20: ( | AE20: ) | AH20: ( | AJ20: ) | AM20: ( | AO20: ) | AR20: 171
A21: ОУД.15 | B21: Биология | E21: 4 | F21: 108 | G21: 36 | H21: 72 | I21: 60 | J21: 12 | O21: 32 | Q21: 40 | X21: ( | Z21: ) | AC21: ( | AE21: ) | AH21: ( | AJ21: ) | AM21: ( | AO21: ) | AR21: 72
A22: ОУД.16 | B22: География | E22: 4 | F22: 108 | G22: 36 | H22: 72 | I22: 46 | J22: 26 | O22: 32 | Q22: 40 | X22: ( | Z22: ) | AC22: ( | AE22: ) | AH22: ( | AJ22: ) | AM22: ( | AO22: ) | AR22: 72
A23: ОУД.17 | B23: Экология | E23: 4 | F23: 108 | G23: 36 | H23: 72 | I23: 52 | J23: 20 | O23: 32 | Q23: 40 | X23: ( | Z23: ) | AC23: ( | AE23: ) | AH23: ( | AJ23: ) | AM23: ( | AO23: ) | AR23: 72
A24: УД.18 | B24: Татарский язык и литература | E24: 4 | F24: 270 | G24: 90 | H24: 180 | I24: 112 | J24: 68 | K24: 64 | M24: 44 | O24: 32 | Q24: 40 | X24: ( | Z24: ) | AC24: ( | AE24: ) | AH24: ( | AJ24: ) | AM24: ( | AO24: ) | AR24: 180
A25: ОП.00 | B25: Общепрофессиональный цикл | D25: 3 | E25: 2 | F25: =SUM(F26:F30) -> 247 | G25: =SUM(G26:G30) -> 79 | H25: =SUM(H26:H30) -> 168 | I25: =SUM(I26:I30) -> 108 | J25: =SUM(J26:J30) -> 60 | AR25: =SUM(AR11:AR24) -> 2052
A26: ОП.01 | B26: Основы микробиологии, санитарии и гигиены в пищевом производстве | D26: 1 | F26: 50 | G26: 16 | H26: 34 | I26: 24 | J26: 10 | K26: 34 | W26: 25 | X26: ( | Y26: 1 | Z26: ) | AB26: 23 | AC26: ( | AD26: 2 | AE26: ) | AH26: ( | AJ26: ) | AM26: ( | AO26: )
A27: ОП.02 | B27: Физиология питания с основами товароведения продовольственных товаров | E27: 1 | F27: 50 | G27: 16 | H27: 34 | I27: 20 | J27: 14 | K27: 34 | X27: ( | Z27: ) | AC27: ( | AE27: ) | AH27: ( | AJ27: ) | AM27: ( | AO27: )
A28: ОП.03 | B28: Техническое оснащение и организация рабочего места | D28: 1 | F28: 50 | G28: 16 | H28: 34 | I28: 24 | J28: 10 | K28: 34 | W28: 39 | X28: ( | Y28: 3 | Z28: ) | AB28: 26 | AC28: ( | AD28: 2 | AE28: ) | AH28: ( | AJ28: ) | AM28: ( | AO28: )
A29: ОП.04 | B29: Экономические и правовые основы производственной деятельности | E29: 3 | F29: 50 | G29: 16 | H29: 34 | I29: 24 | J29: 10 | O29: 34 | W29: 26 | X29: ( | Y29: 2 | Z29: ) | AB29: 26 | AC29: ( | AD29: 2 | AE29: ) | AH29: ( | AJ29: ) | AM29: ( | AO29: )
A30: ОП.05 | B30: Безопасность жизнедеятельности | D30: 4 | F30: 47 | G30: 15 | H30: 32 | I30: 16 | J30: 16 | O30: 32 | X30: ( | Z30: ) | AC30: ( | AE30: ) | AH30: ( | AJ30: ) | AM30: ( | AO30: )
A31: П.00 | B31: Профессиональный цикл | C31: 8 | E31: 15 | F31: =F33+F37+F41+F47+F53+F61+F69+F77 -> 2129 | G31: =G33+G37+G41+G47+G53+G61+G69+G77 -> 209 | H31: =H33+H37+H41+H47+H53+H61+H69+H77 -> 1920 | I31: =I33+I37+I41+I47+I53+I61+I69+I77 -> 294 | J31: =J33+J37+J41+J47+J53+J61+J69+J77 -> 1626
A32: ПМ.00 | B32: Профессиональные модули | X32: ( | Z32: ) | AC32: ( | AE32: ) | AH32: ( | AJ32: ) | AM32: ( | AO32: )
A33: ПМ.01 | B33: Приготовление блюд из овощей и грибов | C33: 2 | F33: =SUM(F34:F36) -> 254 | G33: =G34+G35+G36 -> 24 | H33: =SUM(H34:H36) -> 230 | I33: =I34 -> 32 | J33: =SUM(J34:J36) -> 198 | X33: ( | Z33: ) | AC33: ( | AE33: ) | AH33: ( | AJ33: ) | AM33: ( | AO33: )
A34: МДК.01.01 | B34: Технология обработки сырья и приготовления блюд из овощей и грибов | E34: 2 | F34: 74 | G34: 24 | H34: 50 | I34: 32 | J34: 18 | M34: 50 | X34: ( | Z34: ) | AH34: ( | AJ34: ) | AM34: ( | AO34: )
A35: УП.01 | B35: Учебная практика | F35: 72 | H35: 72 | J35: 72 | M35: 72 | X35: ( | Z35: ) | AH35: ( | AJ35: ) | AM35: ( | AO35: )
A36: ПП.01 | B36: Производственная практика | E36: 2 | F36: 108 | H36: 108 | J36: 108 | N36: 108 | X36: ( | Z36: ) | AC36: ( | AE36: ) | AH36: ( | AJ36: ) | AM36: ( | AO36: )
A37: ПМ.02 | B37: Приготовление блюд и гарниров из круп, бобовых и макаронных изделий, яиц, творога, теста | C37: 2 | F37: =SUM(F38:F40) -> 310 | G37: =G38+G39+G40 -> 30 | H37: =SUM(H38:H40) -> 280 | I37: =I38 -> 40 | J37: =SUM(J38:J40) -> 240
A38: МДК.02.01 | B38: Технология подготовки сырья и приготовления блюд и гарниров из круп, бобовых, макаронных изделий, яиц, творога, теста | E38: 2 | F38: 94 | G38: 30 | H38: 64 | I38: 40 | J38: 24 | M38: 64
A39: УП.02 | B39: Учебная практика | E39: 2 | F39: 72 | H39: 72 | J39: 72 | M39: 72 | X39: ( | Z39: ) | AC39: ( | AE39: ) | AH39: ( | AJ39: ) | AM39: ( | AO39: )
A40: ПП.02 | B40: Производственная практика | E40: 2 | F40: 144 | H40: 144 | J40: 144 | N40: 144 | X40: ( | Z40: ) | AC40: ( | AE40: ) | AH40: ( | AJ40: ) | AM40: ( | AO40: )
A41: ПМ.03 | B41: Приготовление супов и соусов | C41: 4 | F41: =SUM(F42:F44) -> 258 | G41: =G42+G43+G44 -> 24 | H41: =SUM(H42:H44) -> 234 | I41: =I42 -> 36 | J41: =SUM(J42:J44) -> 198 | AC41: ( | AE41: ) | AH41: ( | AJ41: ) | AM41: ( | AO41: )
A42: МДК.03.01 | B42: Технология приготовления супов и соусов | E42: 4 | F42: 78 | G42: 24 | H42: 54 | I42: 36 | J42: 18 | O42: 30 | Q42: 24 | AC42: ( | AE42: ) | AH42: ( | AJ42: ) | AM42: ( | AO42: )
A43: УП.03 | B43: Учебная практика | F43: 72 | H43: 72 | J43: 72 | P43: 36 | Q43: 36 | X43: ( | Z43: ) | AB43: 48 | AC43: ( | AD43: 4 | AE43: ) | AH43: ( | AJ43: ) | AM43: ( | AO43: )
A44: ПП.03 | B44: Производственная практика | E44: 4 | F44: 108 | H44: 108 | J44: 108 | R44: 108 | X44: ( | Z44: ) | AC44: ( | AE44: ) | AH44: ( | AJ44: ) | AM44: ( | AO44: )
X45: ( | Z45: ) | AC45: ( | AE45: ) | AH45: ( | AJ45: ) | AM45: ( | AO45: )
X46: ( | Z46: ) | AC46: ( | AE46: ) | AH46: ( | AJ46: ) | AM46: ( | AO46: )
A47: ПМ.04 | B47: Приготовление блюд из рыбы | C47: 4 | F47: =SUM(F48:F50) -> 206 | G47: =G48+G49+G50 -> 20 | H47: =SUM(H48:H50) -> 186 | I47: =I48 -> 26 | J47: =J48+J49+J50 -> 160
A48: МДК.04.01 | B48: Технология обработки сырья и приготовления блюд из рыбы | E48: 4 | F48: 62 | G48: 20 | H48: 42 | I48: 26 | J48: 16 | Q48: 42
A49: УП.04 | B49: Учебная практика | F49: 72 | H49: 72 | J49: 72 | Q49: 72 | X49: ( | Z49: ) | AC49: ( | AE49: ) | AH49: ( | AJ49: ) | AM49: ( | AO49: )
A50: ПП.04 | B50: Производственная практика | F50: 72 | H50: 72 | J50: 72 | R50: 72 | X50: ( | Z50: ) | AC50: ( | AE50: ) | AH50: ( | AJ50: ) | AM50: ( | AO50: )
X51: ( | Z51: ) | AC51: ( | AE51: ) | AH51: ( | AJ51: ) | AM51: ( | AO51: )
X52: ( | Z52: ) | AC52: ( | AE52: ) | AH52: ( | AJ52: ) | AM52: ( | AO52: )
A53: ПМ.05 | B53: Приготовление блюд из мяса и домашней птицы | C53: 6 | F53: =SUM(F54:F56) -> 319 | G53: =G54+G55+G56 -> 33 | H53: =SUM(H54:H56) -> 286 | I53: =I54 -> 46 | J53: =SUM(J54:J56) -> 240 | X53: ( | Z53: ) | AC53: ( | AE53: ) | AH53: ( | AJ53: ) | AM53: ( | AO53: )
A54: МДК.05.01 | B54: Технология обработки сырья и приготовления блюд из мяса и домашней птицы | E54: 6 | F54: 103 | G54: 33 | H54: 70 | I54: 46 | J54: 24 | S54: 46 | U54: 24
A55: УП.05 | B55: Учебная практика | F55: 108 | H55: 108 | J55: 108 | S55: 72 | U55: 36 | W55: 57 | X55: ( | Y55: 5 | Z55: ) | AB55: 66 | AC55: ( | AD55: 5 | AE55: ) | AH55: ( | AJ55: ) | AM55: ( | AO55: )
A56: ПП.5 | B56: Производственная практика | E56: 6 | F56: 108 | H56: 108 | J56: 108 | V56: 108 | X56: ( | Z56: ) | AC56: ( | AE56: ) | AH56: ( | AJ56: ) | AM56: ( | AO56: )
X57: ( | Z57: ) | AC57: ( | AE57: ) | AH57: ( | AJ57: ) | AM57: ( | AO57: )
X58: ( | Z58: ) | AC58: ( | AE58: ) | AH58: ( | AJ58: ) | AM58: ( | AO58: )
X59: ( | Z59: ) | AC59: ( | AE59: ) | AH59: ( | AJ59: ) | AM59: ( | AO59: )
X60: ( | Z60: ) | AC60: ( | AE60: ) | AH60: ( | AJ60: ) | AM60: ( | AO60: )
A61: ПМ.06 | B61: Приготовление и оформление холодных блюд и закусок | C61: 6 | F61: =SUM(F62:F64) -> 203 | G61: =G62+G63+G64 -> 19 | H61: =SUM(H62:H64) -> 184 | I61: =I62 -> 30 | J61: =SUM(J62:J64) -> 154 | X61: ( | Z61: ) | AC61: ( | AE61: ) | AF61: 72 | AH61: ( | AJ61: ) | AM61: ( | AO61: )
A62: МДК.06.01 | B62: Технология приготовления и оформления холодных блюд и закусок | E62: 6 | F62: 59 | G62: 19 | H62: 40 | I62: 30 | J62: 10 | S62: 20 | U62: 20
A63: УП.06 | B63: Учебная практика | F63: 72 | H63: 72 | J63: 72 | U63: 72 | X63: ( | Z63: ) | AC63: ( | AE63: ) | AH63: ( | AJ63: ) | AM63: ( | AO63: )
A64: ПП.06 | B64: Производственная практика | E64: 6 | F64: 72 | H64: 72 | J64: 72 | V64: 72 | X64: ( | Z64: ) | AC64: ( | AE64: ) | AH64: ( | AJ64: ) | AM64: ( | AO64: )
X65: ( | Z65: ) | AC65: ( | AE65: ) | AH65: ( | AJ65: ) | AM65: ( | AO65: )
X66: ( | Z66: ) | AC66: ( | AE66: ) | AH66: ( | AJ66: ) | AM66: ( | AO66: )
X67: ( | Z67: ) | AC67: ( | AE67: ) | AH67: ( | AJ67: ) | AM67: ( | AO67: )
X68: ( | Z68: ) | AC68: ( | AE68: ) | AH68: ( | AJ68: ) | AM68: ( | AO68: )
A69: ПМ.07 | B69: Приготовление сладких блюд и напитков | C69: 6 | F69: =F70+F71+F72 -> 203 | G69: =G70+G71+G72 -> 19 | H69: =H70+H71+H72 -> 184 | I69: =I70 -> 30 | J69: =J70+J71+J72 -> 154 | X69: ( | Z69: ) | AC69: ( | AE69: ) | AH69: ( | AJ69: ) | AM69: ( | AO69: )
A70: МДК.07.01 | B70: Технология приготовления сладких блюд и напитков | E70: 6 | F70: 59 | G70: 19 | H70: 40 | I70: 30 | J70: 10 | U70: 40
A71: УП.07 | B71: Учебная практика | F71: 72 | H71: 72 | J71: 72 | U71: 72 | W71: 71 | X71: ( | Y71: 6 | Z71: ) | AB71: 75 | AC71: ( | AD71: 6 | AE71: ) | AH71: ( | AJ71: ) | AM71: ( | AO71: )
A72: ПП.07 | B72: Производственная практика | E72: 6 | F72: 72 | H72: 72 | J72: 72 | V72: 72 | X72: ( | Z72: ) | AC72: ( | AE72: ) | AH72: ( | AJ72: ) | AM72: ( | AO72: )
X73: ( | Z73: ) | AC73: ( | AE73: ) | AH73: ( | AJ73: ) | AM73: ( | AO73: )
X74: ( | Z74: ) | AC74: ( | AE74: ) | AH74: ( | AJ74: ) | AM74: ( | AO74: )
X75: ( | Z75: ) | AC75: ( | AE75: ) | AH75: ( | AJ75: ) | AM75: ( | AO75: )
X76: ( | Z76: ) | AC76: ( | AE76: ) | AH76: ( | AJ76: ) | AM76: ( | AO76: )
A77: ПМ.08 | B77: Приготовление хлебобулочных, мучных и кондитерских изделий | C77: 6 | F77: =SUM(F78:F80) -> 376 | G77: =G78+G79+G80 -> 40 | H77: =SUM(H78:H80) -> 336 | I77: =I78 -> 54 | J77: =SUM(J78:J80) -> 282 | X77: ( | Z77: ) | AC77: ( | AE77: ) | AF77: 72 | AH77: ( | AJ77: ) | AM77: ( | AO77: )
A78: МДК.08.01 | B78: Технология приготовления хлебобулочных, мучных и кондитерских изделий | E78: 6 | F78: 124 | G78: 40 | H78: 84 | I78: 54 | J78: 30 | S78: 60 | U78: 24
A79: УП.08 | B79: Учебная практика | F79: 144 | H79: 144 | J79: 144 | S79: 108 | U79: 36 | X79: ( | Z79: ) | AC79: ( | AE79: ) | AH79: ( | AJ79: ) | AM79: ( | AO79: )
A80: ПП.08 | B80: Производственная практика | E80: 6 | F80: 108 | H80: 108 | J80: 108 | V80: 108 | X80: ( | Z80: ) | AC80: ( | AE80: ) | AH80: ( | AJ80: ) | AM80: ( | AO80: )
X81: ( | Z81: ) | AC81: ( | AE81: ) | AH81: ( | AJ81: ) | AM81: ( | AO81: )
X82: ( | Z82: ) | AC82: ( | AE82: ) | AH82: ( | AJ82: ) | AM82: ( | AO82: )
X83: ( | Z83: ) | AC83: ( | AE83: ) | AH83: ( | AJ83: ) | AM83: ( | AO83: )
X84: ( | Z84: ) | AC84: ( | AE84: ) | AH84: ( | AJ84: ) | AM84: ( | AO84: )
X85: ( | Z85: ) | AC85: ( | AE85: ) | AH85: ( | AJ85: ) | AM85: ( | AO85: )
X87: ( | Z87: ) | AC87: ( | AE87: ) | AH87: ( | AJ87: ) | AM87: ( | AO87: )
X88: ( | Z88: ) | AC88: ( | AE88: ) | AH88: ( | AJ88: ) | AM88: ( | AO88: )
X89: ( | Z89: ) | AC89: ( | AE89: ) | AH89: ( | AJ89: ) | AM89: ( | AO89: )
X90: ( | Z90: ) | AC90: ( | AE90: ) | AH90: ( | AJ90: ) | AM90: ( | AO90: )
X91: ( | Z91: ) | AC91: ( | AE91: ) | AH91: ( | AJ91: ) | AM91: ( | AO91: )
X92: ( | Z92: ) | AC92: ( | AE92: ) | AH92: ( | AJ92: ) | AM92: ( | AO92: )
A93: ФК.00 | B93: Физическая культура | E93: 6 | F93: 72 | G93: 36 | H93: 36 | I93: 4 | J93: 32 | U93: 36 | X93: ( | Z93: ) | AC93: ( | AE93: ) | AH93: ( | AJ93: ) | AM93: ( | AO93: )
X95: ( | Z95: ) | AC95: ( | AE95: ) | AH95: ( | AJ95: ) | AM95: ( | AO95: )
X96: ( | Z96: ) | AC96: ( | AE96: ) | AH96: ( | AJ96: ) | AM96: ( | AO96: )
X97: ( | Z97: ) | AC97: ( | AE97: ) | AH97: ( | AJ97: ) | AM97: ( | AO97: )
X98: ( | Z98: ) | AC98: ( | AE98: ) | AH98: ( | AJ98: ) | AM98: ( | AO98: )
X99: ( | Z99: ) | AC99: ( | AE99: ) | AH99: ( | AJ99: ) | AM99: ( | AO99: )
A100: Всего: | C100: =C10+C31 -> 11 | D100: =D25 -> 3 | E100: =E10+E25+E31 -> 27 | F100: =F10+F25+F31+F93 -> 5526 | G100: =G10+G25+G31+G93 -> 1350 | H100: =H10+H25+H31+H93 -> 4176 | I100: =I10+I25+I31+I93 -> 1644 | J100: =J10+J25+J31+J93 -> 2532 | K100: =SUM(K11:K99) -> 612 | M100: =SUM(M11:M99) -> 576 | N100: =SUM(N35:N99) -> 252 | O100: =SUM(O11:O93) -> 576 | Q100: =SUM(Q11:Q99) -> 648 | R100: =SUM(R43:R99) -> 180 | S100: =SUM(S11:S99) -> 576 | T100: =T55+T56+T63+T64+T71+T72+T79+T80 -> 0 | U100: =SUM(U11:U99) -> 360 | V100: =SUM(V56:V99) -> 360 | X100: ( | Z100: ) | AC100: ( | AE100: ) | AH100: ( | AJ100: ) | AM100: ( | AO100: )
A101: Итого (без практики и общеобразовательной подготовки) | F101: =F25+F34+F38+F42+F48+F54+F62+F70+F78+F93 -> 972 | G101: =G25+G31+G93 -> 324 | H101: =H25+H34+H38+H42+H48+H54+H62+H70+H78+H93 -> 648 | I101: =I25+I31+I93 -> 406 | J101: =J25+J34+J38+J42+J48+J54+J62+J70+J78+J93 -> 242 | K101: =SUM(K26:K28) -> 102 | M101: =M34+M38 -> 114 | O101: =O29+O42 -> 64 | Q101: =Q30+Q42+Q48 -> 66 | S101: =S54+S62+S78 -> 126 | U101: =U54+U62+U70+U78+U93 -> 144 | X101: ( | Z101: ) | AC101: ( | AE101: ) | AH101: ( | AJ101: ) | AM101: ( | AO101: )
A102: ГИА.00 | B102: Государственная итоговая аттестация | U102: 2 недели | X102: ( | Z102: ) | AC102: ( | AE102: ) | AH102: ( | AJ102: ) | AM102: ( | AO102: )
A103: Консультации: 4 часа на одного обучающегося на каждый учебный год. Государственная (итоговая) аттестация: защита выпускной квалификационной работы. | H103: Всего | I103: дисциплин и МДК | K103: =SUM(K11:K28) -> 612 | M103: =M11+M12+M13+M14+M15+M16+M17+M18+M24+M34+M38 -> 432 | O103: =SUM(O11:O43) -> 576 | Q103: =Q11+Q12+Q13+Q14+Q15+Q19+Q20+Q21+Q22+Q23+Q24+Q42+Q48 -> 540 | S103: =S11+S13+S14+S15+S19+S20+S54+S62+S78 -> 396 | U103: =U54+U62+U70+U78+U93 -> 144 | X103: ( | Z103: ) | AC103: ( | AE103: ) | AH103: ( | AJ103: ) | AM103: ( | AO103: )
I104: учебной практики | M104: =M35+M39 -> 144 | O104: 36 | Q104: =Q43+Q49 -> 108 | S104: =S55+S79 -> 180 | U104: =U55+U63+U71+U79 -> 216 | X104: ( | Z104: ) | AC104: ( | AE104: ) | AH104: ( | AJ104: ) | AM104: ( | AO104: )
I105: производственной практики | M105: =N36+N40 -> 252 | Q105: =R44+R50 -> 180 | U105: =V56+V64+V72+V80 -> 360 | X105: ( | Z105: ) | AC105: ( | AE105: ) | AH105: ( | AJ105: ) | AM105: ( | AO105: )
I106: экзаменов | M106: 2 | Q106: 2 | S106: 3 | U106: 4 | X106: ( | Z106: ) | AC106: ( | AE106: ) | AH106: ( | AJ106: ) | AM106: ( | AO106: )
I107: дифф. зачетов | M107: 8 | O107: 1 | Q107: 8 | S107: 2 | U107: 8 | W107: 468 | AB107: 468 | AF107: 144
I108: зачетов | K108: 2 | Q108: 1 | W108: =SUM(W25:W106)-W106-W101-W100-W93-W92-W85-W84-W77-W76-W69-W61-W60-W53-W52 -> 218 | AB108: =SUM(AB25:AB106)-AB106-AB101-AB100-AB93-AB92-AB85-AB84-AB77-AB76-AB69-AB61-AB60-AB53-AB52 -> 264 | AG108: =SUM(AG25:AG106)-AG106-AG101-AG100-AG93-AG92-AG85-AG84-AG77-AG76-AG69-AG61-AG60-AG53-AG52 -> 0 | AK108: =SUM(AK25:AK106) -> 0 | AL108: =SUM(AL25:AL106)-AL106-AL101-AL100-AL93-AL92-AL85-AL84-AL77-AL76-AL69-AL61-AL60-AL53-AL52 -> 0 | AP108: =SUM(AP25:AP106) -> 0
W111: 468 | AB111: 612
AB113: 144
AB114: 144
AB115: 2
AB116: 3
W117: 1 | AB117: 5
